bitfinex/quotes_BTCUSD_20250129
["timestamp","ask_amount","ask_price","bid_price","bid_amount"]
[1738120133155,0.00119058,102030.0,102020.0,0.86898048]
[1738120134362,0.00119058,102030.0,102020.0,0.87738048]
[1738120135099,0.00119058,102030.0,102020.0,0.95818048]
[1738120135261,0.00119058,102030.0,102020.0,1.06542583]
[1738120135655,0.00119058,102030.0,102020.0,1.12471314]
[1738120135972,0.00119058,102030.0,102020.0,1.27471314]
[1738120136556,1e-08,102030.0,102020.0,1.27471314]
[1738120139589,1e-08,102030.0,102020.0,1.27671314]
[1738120139795,1e-08,102030.0,102020.0,1.18891217]
[1738120140023,1e-08,102030.0,102020.0,1.18691217]
[1738120140225,1e-08,102030.0,102020.0,1.18891217]
[1738120141703,1e-08,102030.0,102020.0,1.28458028]
[1738120142154,1e-08,102030.0,102020.0,1.21191217]
[1738120143076,1e-08,102030.0,102020.0,1.28458028]
[1738120143280,1e-08,102030.0,102020.0,1.21191217]
[1738120143456,0.00014231,102030.0,102020.0,1.28458028]
[1738120143664,0.00014231,102030.0,102020.0,1.20991217]
[1738120143916,0.00014231,102030.0,102020.0,1.18351217]
[1738120144051,0.00014231,102030.0,102020.0,1.19219217]
[1738120144440,0.00014231,102030.0,102020.0,1.06209217]
[1738120144846,0.00014231,102030.0,102020.0,1.06205217]
[1738120146110,0.00014231,102030.0,102020.0,1.05705217]
[1738120146291,0.00014231,102030.0,102020.0,1.05905217]
[1738120146641,0.00014231,102030.0,102020.0,1.02442067]
[1738120146836,0.00014231,102030.0,102020.0,1.11206072]
[1738120148835,0.00014231,102030.0,102020.0,1.10342072]
[1738120149041,0.00014231,102030.0,102020.0,1.11206072]
[1738120150081,0.00014231,102030.0,102020.0,1.10342072]
[1738120150389,0.00014231,102030.0,102020.0,1.01578067]
[1738120150602,0.00014231,102030.0,102020.0,1.10658067]
[1738120152117,0.1381423,102050.0,102040.0,0.1029]
[1738120152321,0.13819058,102050.0,102040.0,2.25994367]
[1738120153335,0.13919058,102050.0,102040.0,2.25994367]
[1738120155335,0.24208058,102050.0,102040.0,1.77356235]
[1738120155580,0.24208058,102050.0,102040.0,1.78208235]
[1738120160540,0.24208058,102050.0,102040.0,1.77356235]
[1738120160661,0.24208058,102050.0,102040.0,1.78200235]
[1738120161379,0.23208058,102050.0,102040.0,1.78200235]
[1738120163603,0.23208058,102050.0,102040.0,1.81251858]
[1738120164260,0.23208058,102050.0,102040.0,2.2988999]
[1738120164490,0.12919058,102050.0,102040.0,2.2988999]
[1738120165011,0.12919058,102050.0,102040.0,1.81251858]
[1738120167968,0.23208058,102050.0,102040.0,1.81251858]
[1738120168586,0.23208058,102050.0,102040.0,1.70961858]
[1738120169790,0.23208058,102050.0,102040.0,1.81251858]
[1738120169999,0.23208058,102050.0,102040.0,1.70949858]
[1738120170348,0.23208058,102050.0,102040.0,1.81239858]
[1738120170750,0.23208058,102050.0,102040.0,1.70949858]
[1738120170959,0.38208058,102050.0,102040.0,1.70949858]
[1738120171167,0.4547425,102050.0,102040.0,1.67898235]
[1738120171400,0.38208058,102050.0,102040.0,1.67898235]
[1738120173797,0.4547425,102050.0,102040.0,0.59011236]
[1738120174261,0.4777425,102050.0,102040.0,0.59011236]
[1738120175317,0.4767425,102050.0,102040.0,0.59011236]
[1738120175631,0.4767425,102050.0,102040.0,0.59811236]
[1738120178277,0.4537425,102050.0,102040.0,0.59811236]
[1738120182959,0.38108058,102050.0,102040.0,0.59811236]
[1738120184418,0.38108058,102050.0,102040.0,0.70101236]
[1738120184614,0.38108058,102050.0,102040.0,0.59811236]
[1738120190018,0.4537425,102050.0,102040.0,0.59811236]
[1738120193037,0.38108058,102050.0,102040.0,0.59811236]
[1738120194292,0.4537425,102050.0,102040.0,0.59811236]
[1738120195065,0.38108058,102050.0,102040.0,0.59811236]
[1738120197989,0.4537425,102050.0,102040.0,0.59811236]
[1738120198126,0.38108058,102050.0,102040.0,0.59811236]
[1738120199557,0.4537425,102050.0,102040.0,0.59811236]
[1738120201392,0.38108058,102050.0,102040.0,0.59811236]
[1738120204592,0.29968058,102050.0,102040.0,0.59811236]
[1738120204816,0.25308058,102050.0,102040.0,0.78201236]
[1738120205411,0.10308058,102050.0,102040.0,0.78201236]
[1738120206568,0.10308058,102050.0,102040.0,0.88007866]
[1738120208120,0.00019058,102050.0,102040.0,0.88007866]
[1738120212193,0.01019058,102050.0,102040.0,0.98327898]
[1738120212597,0.00019058,102050.0,102040.0,1.03307898]
[1738120212864,0.01019058,102050.0,102040.0,1.03307898]
[1738120213088,0.00019058,102050.0,102040.0,1.03307898]
[1738120213288,0.00019058,102050.0,102040.0,1.02507898]
[1738120213716,0.01119058,102050.0,102040.0,1.02507898]
[1738120214019,0.01019058,102050.0,102040.0,0.95241706]
[1738120214785,0.01019058,102050.0,102040.0,0.96045706]
[1738120215451,0.01019058,102050.0,102040.0,0.96245706]
[1738120217506,0.01019058,102050.0,102040.0,0.83161706]
[1738120217922,0.01019058,102050.0,102040.0,0.80107866]
[1738120218098,0.01019058,102050.0,102040.0,0.82356109]
[1738120218305,0.01019058,102050.0,102040.0,0.83164109]
[1738120218710,0.01019058,102050.0,102040.0,0.91284109]
[1738120219761,0.01019058,102050.0,102040.0,0.83164109]
[1738120219985,0.01019058,102050.0,102040.0,0.80115866]
[1738120220711,0.01019058,102050.0,102040.0,0.83163108]
[1738120220904,0.01019058,102050.0,102040.0,0.80115866]
[1738120221415,0.01019058,102050.0,102040.0,0.83163097]
[1738120221624,0.01019058,102050.0,102040.0,0.80115866]
[1738120222334,0.01019058,102050.0,102040.0,0.83163005]
[1738120222538,0.01019058,102050.0,102040.0,0.80115866]
[1738120222928,0.11308058,102050.0,102040.0,0.80115866]
[1738120223144,0.10308058,102050.0,102040.0,0.80107866]
[1738120223291,0.10308058,102050.0,102040.0,0.69817866]
[1738120223654,0.10308058,102050.0,102040.0,0.80107866]
[1738120223891,0.10308058,102050.0,102040.0,0.69017866]
[1738120224090,0.10308058,102050.0,102040.0,0.69821866]
[1738120224503,0.10308058,102050.0,102040.0,0.69817866]
[1738120224916,0.10308058,102050.0,102040.0,0.80107866]
[1738120225282,0.00019058,102050.0,102040.0,0.80107866]
[1738120226338,0.01019058,102050.0,102040.0,0.80107866]
[1738120226793,0.00019058,102050.0,102040.0,0.80107866]
[1738120226995,0.00019058,102050.0,102040.0,0.88085057]
[1738120227203,0.00019058,102050.0,102040.0,0.83155057]
[1738120227375,0.00019058,102050.0,102040.0,0.80107866]
[1738120227958,0.00019058,102050.0,102040.0,0.85037866]
[1738120228163,0.00019058,102050.0,102040.0,0.88085228]
[1738120228365,0.00019058,102050.0,102040.0,0.85037866]
[1738120228566,0.00019058,102050.0,102040.0,0.8808541]
[1738120229097,0.00019058,102050.0,102040.0,0.85037866]
[1738120229524,0.00019058,102050.0,102040.0,0.8808549]
[1738120230227,0.00019058,102050.0,102040.0,1.10647874]
[1738120230453,0.00019058,102050.0,102040.0,1.03381682]
[1738120231053,0.00019058,102050.0,102040.0,1.10647874]
[1738120231558,0.00019058,102050.0,102040.0,1.10447874]
[1738120231803,0.00019058,102050.0,102040.0,1.03181682]
[1738120232508,0.00019058,102050.0,102040.0,1.25447874]
[1738120232913,0.0001423,102070.0,102040.0,1.25447874]
[1738120233047,0.0001423,102070.0,102060.0,0.27278508]
[1738120233048,0.00019058,102070.0,102060.0,0.27278508]
[1738120233260,0.00019058,102070.0,102060.0,2.28742651]
[1738120233463,0.00019058,102070.0,102060.0,2.29032643]
[1738120234329,0.00019058,102070.0,102060.0,2.36298835]
[1738120234481,0.00019058,102070.0,102060.0,2.29032643]
[1738120236989,0.00019058,102070.0,102060.0,2.36298835]
[1738120237525,0.00019058,102070.0,102060.0,2.48818835]
[1738120237699,0.00019058,102070.0,102060.0,2.50743363]
[1738120238926,0.00019058,102070.0,102060.0,2.58009555]
[1738120239473,0.00019058,102070.0,102060.0,2.50743363]
[1738120244675,0.00019058,102070.0,102060.0,2.51746158]
[1738120249318,0.00019058,102070.0,102060.0,2.5901235]
[1738120250660,0.00019058,102070.0,102060.0,2.51746158]
[1738120252018,0.00019058,102070.0,102060.0,2.5901235]
[1738120253916,0.00019058,102070.0,102060.0,2.51746158]
[1738120256223,0.00019058,102070.0,102060.0,2.5901235]
[1738120256627,0.00019058,102070.0,102060.0,2.51746158]
[1738120257350,0.00019058,102070.0,102060.0,2.44076158]
[1738120257560,0.13259058,102070.0,102060.0,1.83111039]
[1738120257767,0.13259058,102070.0,102060.0,1.80063415]
[1738120258164,0.13259058,102070.0,102060.0,2.28701547]
[1738120260446,0.01019058,102070.0,102060.0,2.28701547]
[1738120261061,0.01019058,102070.0,102060.0,2.31741869]
[1738120261469,0.01019058,102070.0,102060.0,2.39008061]
[1738120262622,0.00019058,102070.0,102060.0,2.46274253]
[1738120263579,0.00019058,102070.0,102060.0,0.99386702]
[1738120264702,0.00019058,102070.0,102060.0,0.9212051]
[1738120265609,0.00019058,102070.0,102060.0,0.99386702]
[1738120265815,0.00019058,102070.0,102060.0,1.07456702]
[1738120267440,0.00019058,102070.0,102060.0,1.22456702]
[1738120267812,0.0001423,102080.0,102070.0,0.10287]
[1738120268043,0.2359023,102080.0,102070.0,1.60000057]
[1738120268244,0.3759023,102080.0,102070.0,1.60330366]
[1738120268444,0.19570422,102080.0,102070.0,1.70617366]
[1738120268766,0.2259023,102080.0,102070.0,1.67577044]
[1738120269065,0.2259023,102080.0,102070.0,1.71447753]
[1738120269242,0.2259023,102080.0,102070.0,1.61160753]
[1738120269467,0.1230423,102080.0,102070.0,1.71447753]
[1738120270065,0.0101423,102080.0,102070.0,1.71447753]
[1738120270295,0.0001423,102080.0,102070.0,1.71447753]
[1738120271046,0.0001423,102080.0,102070.0,1.84341082]
[1738120274208,0.0001423,102080.0,102070.0,1.99341082]
[1738120275378,0.0001423,102080.0,102070.0,2.00326686]
[1738120276409,0.0001423,102080.0,102070.0,2.07486686]
[1738120276535,0.0001423,102080.0,102070.0,2.16250691]
[1738120280411,0.0001423,102080.0,102070.0,2.17250691]
[1738120280616,0.0001423,102080.0,102070.0,2.34900691]
[1738120280827,0.00610628,102090.0,102080.0,0.173]
[1738120281010,0.00615455,102090.0,102080.0,1.66589684]
[1738120281271,0.00615455,102090.0,102080.0,1.66818035]
[1738120281589,0.00615455,102090.0,102080.0,1.68644925]
[1738120282311,0.00615455,102090.0,102080.0,1.68844925]
[1738120282480,0.00615455,102090.0,102080.0,1.68644925]
[1738120283739,0.00615455,102090.0,102080.0,1.70144925]
[1738120285703,0.00615455,102090.0,102080.0,1.72058268]
[1738120286802,0.00615455,102090.0,102080.0,1.71558268]
[1738120287157,0.00615455,102090.0,102080.0,1.72358268]
[1738120287368,0.00629685,102090.0,102080.0,1.72358268]
[1738120287895,0.0001422,102110.0,102100.0,0.21350439]
[1738120288099,0.00019047,102110.0,102100.0,2.39779765]
[1738120288291,0.00019047,102110.0,102100.0,2.29037681]
[1738120288611,0.01019047,102110.0,102100.0,1.7735284]
[1738120288829,0.13739047,102110.0,102100.0,1.7818484]
[1738120289863,0.13739047,102110.0,102100.0,1.7735284]
[1738120290068,0.13739047,102110.0,102100.0,1.7818484]
[1738120290480,0.24022047,102110.0,102100.0,1.7735284]
[1738120290684,0.13739047,102110.0,102100.0,1.7838484]
[1738120290891,0.13730151,102110.0,102100.0,1.7838484]
[1738120291094,0.13730151,102110.0,102100.0,1.7818484]
[1738120291304,0.13830151,102110.0,102100.0,1.7818484]
[1738120292556,0.24113151,102110.0,102100.0,1.7818484]
[1738120292771,0.3417959,102110.0,102100.0,1.6792084]
[1738120293612,0.23113151,102110.0,102100.0,1.6792084]
[1738120294040,0.3417959,102110.0,102100.0,1.6792084]
[1738120296090,0.3367959,102110.0,102100.0,1.6791284]
[1738120297087,0.3357959,102110.0,102100.0,1.6791284]
[1738120297509,0.22513151,102110.0,102100.0,1.6841284]
[1738120298581,0.3357959,102110.0,102100.0,1.6841284]
[1738120298803,0.3357959,102110.0,102100.0,1.7869684]
[1738120299037,0.22513151,102110.0,102100.0,1.7869684]
[1738120299237,0.22513151,102110.0,102100.0,1.78726702]
[1738120299469,0.22527371,102110.0,102100.0,1.78726702]
[1738120301931,0.22527371,102110.0,102100.0,1.68434702]
[1738120303135,0.22527371,102110.0,102100.0,1.78718702]
[1738120304564,0.12244371,102110.0,102100.0,1.78718702]
[1738120304761,0.12244371,102110.0,102100.0,1.78218702]
[1738120304980,0.12444371,102110.0,102100.0,1.78218702]
[1738120306059,0.0121422,102110.0,102100.0,1.78218702]
[1738120306676,0.0021422,102110.0,102100.0,1.78218702]
[1738120307522,0.0121422,102110.0,102100.0,1.78218702]
[1738120308274,0.0021422,102110.0,102100.0,1.81259183]
[1738120308637,0.0021422,102110.0,102100.0,1.78218702]
[1738120309053,0.0121422,102110.0,102100.0,1.78218702]
[1738120309637,0.0021422,102110.0,102100.0,1.80171682]
[1738120309959,0.0021422,102110.0,102100.0,1.83212759]
[1738120310647,0.0121422,102110.0,102100.0,1.83212759]
[1738120312616,0.0021422,102110.0,102100.0,1.83212759]
[1738120312755,0.01190714,102110.0,102100.0,1.83212759]
[1738120317917,0.01190714,102110.0,102100.0,1.94279198]
[1738120318161,0.01190714,102110.0,102100.0,0.96029779]
[1738120318358,0.00190714,102110.0,102100.0,0.96029779]
[1738120318916,0.00190714,102110.0,102100.0,1.04269779]
[1738120319127,0.1237022,102130.0,102120.0,0.10282]
[1738120319248,0.12418499,102130.0,102120.0,1.80057232]
[1738120319694,0.12418499,102130.0,102120.0,1.80396424]
[1738120320391,0.12418499,102130.0,102120.0,1.77355347]
[1738120320614,0.12418499,102130.0,102120.0,1.78155347]
[1738120323203,0.12418499,102130.0,102120.0,1.81194407]
[1738120323434,0.12418499,102130.0,102120.0,1.78155347]
[1738120327848,0.12418499,102130.0,102120.0,1.67873347]
[1738120328054,0.48765938,102130.0,102120.0,1.67873347]
[1738120328599,0.48765938,102130.0,102120.0,1.58074927]
[1738120330426,0.51065938,102130.0,102120.0,1.58074927]
[1738120331937,0.27418499,102130.0,102120.0,1.58074927]
[1738120332145,0.27418499,102130.0,102120.0,1.68356927]
[1738120332352,0.28387288,102130.0,102120.0,1.68356927]
[1738120332941,0.28387288,102130.0,102120.0,1.58074927]
[1738120333307,0.39453727,102130.0,102120.0,1.58074927]
[1738120334106,0.49734727,102130.0,102120.0,1.58074927]
[1738120334364,0.52034727,102130.0,102120.0,1.58074927]
[1738120336488,0.52034727,102130.0,102120.0,0.59825508]
[1738120341984,0.52034727,102130.0,102120.0,0.50101192]
[1738120341985,0.62770403,102130.0,102120.0,0.50101192]
[1738120342195,0.73836842,102130.0,102120.0,0.50101192]
[1738120342399,0.75836842,102130.0,102120.0,0.50101192]
[1738120342601,0.64770403,102130.0,102120.0,0.50101192]
[1738120343510,0.64770403,102130.0,102120.0,0.49301192]
[1738120343820,0.64770403,102130.0,102120.0,0.49801192]
[1738120344465,0.72836842,102130.0,102120.0,0.49801192]
[1738120351149,0.72836842,102130.0,102120.0,0.49301192]
[1738120351924,0.72836842,102130.0,102120.0,0.49501192]
[1738120352523,0.82561158,102130.0,102120.0,0.49501192]
[1738120352734,0.85888937,102130.0,102120.0,0.49501192]
[1738120353189,0.85888937,102130.0,102120.0,0.00539192]
[1738120354184,0.85888937,102130.0,102120.0,0.00339192]
[1738120354723,0.39982,102120.0,102110.0,0.00029862]
[1738120354931,0.8157487,102120.0,102110.0,0.00029862]
[1738120355136,0.84902649,102120.0,102110.0,0.003087]
[1738120355358,0.84902649,102120.0,102110.0,0.00029862]
[1738120355569,0.84902649,102120.0,102110.0,0.003087]
[1738120355720,0.84902649,102120.0,102110.0,0.00029862]
[1738120356124,0.84902649,102120.0,102110.0,0.003087]
[1738120357149,0.84902649,102120.0,102110.0,0.005087]
[1738120359568,0.8157487,102120.0,102110.0,0.005087]
[1738120360925,0.83489898,102120.0,102110.0,0.005087]
[1738120366276,0.87411198,102120.0,102110.0,0.005087]
[1738120367786,0.90738977,102120.0,102110.0,0.005087]
[1738120368136,0.87411198,102120.0,102110.0,0.005087]
[1738120372395,0.90738977,102120.0,102110.0,0.005087]
[1738120379215,0.87411198,102120.0,102110.0,0.005087]
[1738120380137,0.87425418,102120.0,102110.0,0.005087]
[1738120386696,0.87081339,102120.0,102110.0,0.005087]
[1738120403383,0.67418406,102120.0,102110.0,0.005087]
[1738120403559,0.7623317,102120.0,102110.0,0.005087]
[1738120404372,0.83496103,102120.0,102110.0,0.005087]
[1738120405192,0.83496103,102120.0,102110.0,0.00229862]
[1738120405545,0.83496103,102120.0,102110.0,0.00511747]
[1738120405747,0.83496103,102120.0,102110.0,0.00229862]
[1738120405949,0.83496103,102120.0,102110.0,0.00511747]
[1738120406070,0.83496103,102120.0,102110.0,0.00229862]
[1738120406271,0.83496103,102120.0,102110.0,0.00511747]
[1738120406475,0.83496103,102120.0,102110.0,0.00229862]
[1738120406682,0.83496103,102120.0,102110.0,0.00511747]
[1738120406948,0.83496103,102120.0,102110.0,0.00229862]
[1738120407418,0.74681339,102120.0,102110.0,0.00512637]
[1738120408060,0.82981339,102120.0,102110.0,0.00512637]
[1738120408277,0.01,102080.0,102070.0,0.13049883]
[1738120408481,0.77951866,102080.0,102070.0,0.13049883]
[1738120408656,0.87687542,102080.0,102070.0,0.13049883]
[1738120409486,0.87687542,102080.0,102070.0,0.1305471]
[1738120409817,0.87987542,102080.0,102070.0,0.1305471]
[1738120410900,0.87687542,102080.0,102070.0,0.1305471]
[1738120411194,0.87687542,102080.0,102070.0,0.1355471]
[1738120411403,0.87687542,102080.0,102070.0,0.1305471]
[1738120412288,0.93950475,102080.0,102070.0,0.0003471]
[1738120412926,0.91950475,102080.0,102070.0,0.0023471]
[1738120413141,0.91950475,102080.0,102070.0,0.0003471]
[1738120413378,0.73804791,102080.0,102070.0,0.0003471]
[1738120413591,0.49376799,102060.0,102050.0,0.00029883]
[1738120413800,0.58067889,102060.0,102050.0,0.0003471]
[1738120414735,0.58435058,102060.0,102050.0,0.0003471]
[1738120416219,0.58435058,102060.0,102050.0,0.0083471]
[1738120416433,0.72909374,102060.0,102050.0,0.0083471]
[1738120416641,0.84367153,102060.0,102050.0,0.0083471]
[1738120416819,0.81039374,102060.0,102050.0,0.0083471]
[1738120417664,0.81039374,102060.0,102050.0,0.0003471]
[1738120417868,0.81039374,102060.0,102050.0,0.0053471]
[1738120419227,0.83008879,102060.0,102050.0,0.0053471]
[1738120421867,0.67828879,102060.0,102050.0,0.0053471]
[1738120422067,0.67828879,102060.0,102050.0,0.00798245]
[1738120422671,0.70128879,102060.0,102050.0,0.00298245]
[1738120423086,0.70228879,102060.0,102050.0,0.00298245]
[1738120423290,0.70128879,102060.0,102050.0,0.00298245]
[1738120423501,0.71115208,102060.0,102050.0,0.00298245]
[1738120423706,0.71115208,102060.0,102050.0,0.00498245]
[1738120425865,0.75885208,102060.0,102050.0,0.00498245]
[1738120429697,0.83795208,102060.0,102050.0,0.00498245]
[1738120431120,0.83795208,102060.0,102050.0,0.00298245]
[1738120431644,0.68815208,102060.0,102050.0,0.00298245]
[1738120432324,0.71215208,102060.0,102050.0,0.00298245]
[1738120432470,0.68915208,102060.0,102050.0,0.00298245]
[1738120432668,0.71015208,102060.0,102050.0,0.00298245]
[1738120432872,0.71115208,102060.0,102050.0,0.00298245]
[1738120435466,0.38666984,102050.0,102040.0,0.12374974]
[1738120435585,0.43791009,102050.0,102040.0,0.12379802]
[1738120436480,0.38666984,102050.0,102040.0,0.12379802]
[1738120436691,0.38666984,102050.0,102040.0,0.12579802]
[1738120438334,0.38666984,102050.0,102040.0,0.12609706]
[1738120438667,0.38666984,102050.0,102040.0,0.00234732]
[1738120439090,0.483913,102050.0,102040.0,0.00234732]
[1738120439306,0.6920496,102050.0,102040.0,0.00234732]
[1738120439508,0.58126976,102050.0,102040.0,0.00234732]
[1738120439949,0.28591,102030.0,102020.0,0.12989883]
[1738120440167,0.39668984,102030.0,102020.0,0.12994711]
[1738120442837,0.52746968,102030.0,102020.0,0.12994711]
[1738120442965,0.59582644,102030.0,102020.0,0.00834711]
[1738120443175,0.6930696,102030.0,102020.0,0.00834711]
[1738120443767,0.80264739,102030.0,102020.0,0.00834711]
[1738120444224,0.295931,102010.0,102000.0,0.00029862]
[1738120444437,0.57453128,102010.0,102000.0,0.0003469]
[1738120445432,0.67177444,102010.0,102000.0,0.0003469]
[1738120446469,0.74847444,102010.0,102000.0,0.0003469]
[1738120446787,0.74847444,102010.0,102000.0,0.0053469]
[1738120447647,0.6376946,102010.0,102000.0,0.0053469]
[1738120447816,0.74847444,102010.0,102000.0,0.0053469]
[1738120448028,0.72847444,102010.0,102000.0,0.0053469]
[1738120448763,0.65177444,102010.0,102000.0,0.0053469]
[1738120450132,0.67120149,102010.0,102000.0,0.0003469]
[1738120450340,0.68101507,102010.0,102000.0,0.0003469]
[1738120451027,0.68101507,102010.0,102000.0,0.0023469]
[1738120456779,0.68037128,102010.0,102000.0,0.0023469]
[1738120459129,0.56959144,102010.0,102000.0,0.0023469]
[1738120461998,0.47234828,102010.0,102000.0,0.0023469]
[1738120462225,0.38288063,102010.0,102000.0,0.1282469]
[1738120462437,0.38288063,102010.0,102000.0,0.0023469]
[1738120462662,0.40602303,102010.0,102000.0,0.0023469]
[1738120463515,0.40602303,102010.0,102000.0,0.0821469]
[1738120463724,0.50337979,102010.0,102000.0,0.0821469]
[1738120464160,0.52337979,102010.0,102000.0,0.0821469]
[1738120464584,0.52337979,102010.0,102000.0,0.0023469]
[1738120464788,0.50337979,102010.0,102000.0,0.0023469]
[1738120467591,0.54263079,102010.0,102000.0,0.0023469]
[1738120469121,0.56263079,102010.0,102000.0,0.0023469]
[1738120469554,0.44527403,102010.0,102000.0,0.0789469]
[1738120474715,0.46527403,102010.0,102000.0,0.0789469]
[1738120474920,0.44527403,102010.0,102000.0,0.0789469]
[1738120475323,0.46527403,102010.0,102000.0,0.0789469]
[1738120475543,0.44527403,102010.0,102000.0,0.0789469]
[1738120475742,0.54263079,102010.0,102000.0,0.0789469]
[1738120476180,0.56263079,102010.0,102000.0,0.0789469]
[1738120476334,0.54263079,102010.0,102000.0,0.0789469]
[1738120476543,0.56263079,102010.0,102000.0,0.0789469]
[1738120476776,0.54263079,102010.0,102000.0,0.0789469]
[1738120477090,0.56263079,102010.0,102000.0,0.0789469]
[1738120477295,0.54263079,102010.0,102000.0,0.0789469]
[1738120477591,0.56263079,102010.0,102000.0,0.0789469]
[1738120478034,0.54263079,102010.0,102000.0,0.0789469]
[1738120481333,0.56263079,102010.0,102000.0,0.0789469]
[1738120481767,0.56263079,102010.0,102000.0,0.0889069]
[1738120481768,0.54263079,102010.0,102000.0,0.0889069]
[1738120481971,0.56263079,102010.0,102000.0,0.0889069]
[1738120482146,0.54263079,102010.0,102000.0,0.0889069]
[1738120482607,0.56263079,102010.0,102000.0,0.0889069]
[1738120482848,0.52459912,102010.0,102000.0,0.0889069]
[1738120483127,0.50459912,102010.0,102000.0,0.0889069]
[1738120487213,0.52459912,102010.0,102000.0,0.0889069]
[1738120489548,0.50459912,102010.0,102000.0,0.0889069]
[1738120489747,0.50459912,102010.0,102000.0,0.0123069]
[1738120491236,0.52459912,102010.0,102000.0,0.0123069]
[1738120492086,0.50459912,102010.0,102000.0,0.0123069]
[1738120492561,0.52459912,102010.0,102000.0,0.0123069]
[1738120495078,0.50459912,102010.0,102000.0,0.0123069]
[1738120498398,0.74429045,102010.0,102000.0,0.0123069]
[1738120498608,0.86343862,102010.0,102000.0,9e-07]
[1738120498813,0.86343862,102010.0,101990.0,0.00029883]
[1738120498814,0.355641,102000.0,101990.0,7.3e-07]
[1738120499020,0.305961,101980.0,101970.0,0.00029862]
[1738120499236,0.57660551,101980.0,101970.0,9.4e-07]
[1738120499661,0.67384867,101980.0,101970.0,9.4e-07]
[1738120499870,0.72034867,101980.0,101970.0,9.4e-07]
[1738120500076,0.75362646,101980.0,101970.0,9.4e-07]
[1738120500285,0.85098322,101980.0,101970.0,9.4e-07]
[1738120500719,0.87950341,101980.0,101970.0,9.4e-07]
[1738120500925,0.65753403,101980.0,101970.0,9.4e-07]
[1738120501356,0.44156569,101960.0,101950.0,0.06803702]
[1738120501574,0.69442479,101960.0,101950.0,0.00918602]
[1738120501815,0.7524979,101960.0,101950.0,0.00918602]
[1738120502031,0.86348259,101960.0,101950.0,0.00918602]
[1738120502245,0.55603349,101950.0,101940.0,6.4e-07]
[1738120502462,0.65327665,101950.0,101940.0,6.4e-07]
[1738120502685,0.75063341,101950.0,101940.0,6.4e-07]
[1738120503330,0.328301,101940.0,101930.0,4.7e-07]
[1738120503539,0.67051354,101940.0,101930.0,4.7e-07]
[1738120503758,0.263011,101930.0,101920.0,0.0002593]
[1738120503913,0.37399569,101930.0,101920.0,0.0002593]
[1738120504122,0.38699569,101930.0,101920.0,0.0002593]
[1738120504300,0.48617135,101930.0,101920.0,0.0002593]
[1738120504500,0.48617135,101930.0,101920.0,0.00040424]
[1738120504703,0.39699569,101930.0,101920.0,0.00040424]
[1738120505868,0.276011,101930.0,101920.0,0.00040424]
[1738120506100,0.28571688,101930.0,101920.0,0.00040424]
[1738120506252,0.253011,101930.0,101920.0,0.1026474]
[1738120506775,0.126011,101930.0,101920.0,0.1026474]
[1738120506977,0.126011,101930.0,101920.0,0.0976474]
[1738120507355,0.127011,101930.0,101920.0,0.1056474]
[1738120509544,0.23799569,101930.0,101920.0,0.1056474]
[1738120509761,0.40799569,101930.0,101920.0,0.00840424]
[1738120509972,0.41799569,101930.0,101920.0,0.00840424]
[1738120510402,0.39799569,101930.0,101920.0,0.00840424]
[1738120511501,0.38799569,101930.0,101920.0,0.00840424]
[1738120511717,0.39799569,101930.0,101920.0,0.00840424]
[1738120512449,0.49535245,101930.0,101920.0,0.00840424]
[1738120512830,0.39799569,101930.0,101920.0,0.00840424]
[1738120514322,0.41799569,101930.0,101920.0,0.00840424]
[1738120514832,0.41699569,101930.0,101920.0,0.00040424]
[1738120515037,0.39699569,101930.0,101920.0,0.00040424]
[1738120515175,0.39699569,101930.0,101920.0,0.00240424]
[1738120515372,0.51435245,101930.0,101920.0,0.00240424]
[1738120516271,0.50435245,101930.0,101920.0,0.00240424]
[1738120516798,0.5042233,101930.0,101920.0,0.00240424]
[1738120517009,0.5142233,101930.0,101920.0,0.00240424]
[1738120517165,0.4942233,101930.0,101920.0,0.00240424]
[1738120517573,0.5142233,101930.0,101920.0,0.00040424]
[1738120517769,0.5142233,101930.0,101920.0,0.00540424]
[1738120518023,0.4842233,101930.0,101920.0,0.00540424]
[1738120518438,0.27588185,101930.0,101920.0,0.00540424]
[1738120519967,0.29602435,101930.0,101920.0,0.00540424]
[1738120520376,0.29602435,101930.0,101920.0,0.00040424]
[1738120520810,0.29702435,101930.0,101920.0,0.00040424]
[1738120521013,0.29602435,101930.0,101920.0,0.00040424]
[1738120521192,0.39338111,101930.0,101920.0,0.00040424]
[1738120521402,0.29602435,101930.0,101920.0,0.00540424]
[1738120521611,0.29602435,101930.0,101920.0,0.00040424]
[1738120521838,0.27602435,101930.0,101920.0,0.00040424]
[1738120522208,0.29602435,101930.0,101920.0,0.00040424]
[1738120522407,0.39338111,101930.0,101920.0,0.00040424]
[1738120522768,0.5143658,101930.0,101920.0,0.00040424]
[1738120522983,0.4843658,101930.0,101920.0,0.00040424]
[1738120523209,0.65910896,101930.0,101920.0,2.4e-07]
[1738120523472,0.286021,101920.0,101910.0,0.00029862]
[1738120523696,0.49436245,101920.0,101910.0,0.00034694]
[1738120524743,0.6925903,101920.0,101910.0,0.00034694]
[1738120524958,0.58160561,101920.0,101910.0,0.00034694]
[1738120525205,0.58160561,101920.0,101910.0,0.00234694]
[1738120528610,0.6925903,101920.0,101910.0,0.00234694]
[1738120528927,0.58160561,101920.0,101910.0,0.00234694]
[1738120529272,0.6010536,101920.0,101910.0,0.00234694]
[1738120529688,0.61078637,101920.0,101910.0,0.00234694]
[1738120531623,0.52409522,101920.0,101910.0,0.00234694]
[1738120531821,0.49409522,101920.0,101910.0,0.00234694]
[1738120532444,0.52409522,101920.0,101910.0,0.00234694]
[1738120532603,0.51409522,101920.0,101910.0,0.00234694]
[1738120532804,0.49409522,101920.0,101910.0,0.00234694]
[1738120533296,0.50409522,101920.0,101910.0,0.00234694]
[1738120533528,0.51409522,101920.0,101910.0,0.00234694]
[1738120533769,0.52409522,101920.0,101910.0,0.00234694]
[1738120534237,0.49409522,101920.0,101910.0,0.00234694]
[1738120534472,0.53338122,101920.0,101910.0,0.00234694]
[1738120535081,0.56338122,101920.0,101910.0,0.00234694]
[1738120535439,0.46602446,101920.0,101910.0,0.00234694]
[1738120536661,0.44602446,101920.0,101910.0,0.00234694]
[1738120538706,0.43602446,101920.0,101910.0,0.00234694]
[1738120539332,0.44602446,101920.0,101910.0,0.00234694]
[1738120539535,0.43602446,101920.0,101910.0,0.00234694]
[1738120539739,0.53338122,101920.0,101910.0,0.00234694]
[1738120540215,0.54338122,101920.0,101910.0,0.00234694]
[1738120540426,0.53338122,101920.0,101910.0,0.00234694]
[1738120541864,0.17503977,101920.0,101910.0,0.00234694]
[1738120542079,0.13575377,101920.0,101910.0,0.00234694]
[1738120542263,0.28575377,101920.0,101910.0,0.00234694]
[1738120542478,0.39673846,101920.0,101910.0,0.00234694]
[1738120542680,0.39673846,101920.0,101910.0,0.03295641]
[1738120543225,0.40669846,101920.0,101910.0,0.03295641]
[1738120543421,0.40699792,101920.0,101910.0,0.03295641]
[1738120543628,0.40699792,101920.0,101910.0,0.00234694]
[1738120543828,0.40699792,101920.0,101910.0,0.0329658]
[1738120544141,0.40699792,101920.0,101910.0,0.00234694]
[1738120544741,0.40699792,101920.0,101910.0,0.03297283]